bitfinex-derivatives/quotes_ETHF0:USTF0_20251226
["timestamp","ask_amount","ask_price","bid_price","bid_amount"]
[1766765016562,40.8,2927.6,2925.8,0.00512908]
[1766765016763,47.5979,2927.6,2925.8,0.00512908]
[1766765016965,40.9709,2927.6,2925.8,0.00757801]
[1766765018367,0.1709,2927.6,2925.9,4.36226632]
[1766765018758,0.1709,2927.6,2925.8,0.00757801]
[1766765020066,0.00512908,2927.7,2925.9,4.39600722]
[1766765021274,0.00512908,2927.7,2925.8,0.00757801]
[1766765021473,0.00512908,2927.7,2925.9,4.42180938]
[1766765021670,0.00512908,2927.7,2925.8,0.00757801]
[1766765021671,0.17602908,2927.7,2925.8,0.00757801]
[1766765021871,0.00512908,2927.7,2925.9,4.42180938]
[1766765023078,0.00512908,2927.7,2926.1,0.17099]
[1766765023270,0.00512908,2927.7,2926.2,0.17098]
[1766765023471,0.00512908,2927.7,2926.2,4.56255392]
[1766765023671,0.00512908,2927.7,2926.2,0.17098]
[1766765023876,0.00512908,2927.7,2926.3,4.39157392]
[1766765025778,0.00512908,2927.7,2926.2,0.17098]
[1766765027284,0.00512908,2927.7,2926.5,0.17097]
[1766765027482,1.65038401,2929.2,2926.7,0.17096]
[1766765027780,40.8,2928.8,2926.9,0.17094]
[1766765027974,6.669,2929.2,2926.9,0.17094]
[1766765028181,2.553,2929.4,2927.2,0.17092]
[1766765028380,40.8,2929.3,2927.2,0.17092]
[1766765028582,2.908e-05,2928.3,2927.8,0.00512908]
[1766765028783,0.17075,2930.3,2927.8,0.00512908]
[1766765029086,0.381,2930.0,2927.8,0.00512908]
[1766765029383,40.8,2929.9,2927.9,4.5374602]
[1766765029771,0.00512908,2929.2,2927.9,4.5374602]
[1766765030380,0.00851672,2929.2,2927.9,4.54046136]
[1766765032082,0.00851672,2929.2,2927.9,0.00300116]
[1766765033085,0.00851672,2929.2,2927.0,1.48263]
[1766765033480,0.00851672,2929.2,2927.1,4.50132929]
[1766765033887,0.00851672,2929.2,2927.9,0.00512908]
[1766765034482,0.00851672,2929.2,2927.1,0.00350088]
[1766765036491,0.17932672,2929.2,2927.1,0.00350088]
[1766765036686,0.17082,2929.1,2927.1,0.00350088]
[1766765037387,40.8,2929.0,2927.1,0.00350088]
[1766765037689,6.661,2928.9,2927.8,0.00512908]
[1766765037887,6.661,2928.9,2927.1,0.00350088]
[1766765038490,40.8,2929.0,2927.1,0.00350088]
[1766765038786,40.8,2929.0,2927.8,0.0034194]
[1766765040588,40.97082,2929.0,2927.8,0.0034194]
[1766765041487,0.17082,2929.0,2927.8,0.0034194]
[1766765046896,40.80851672,2929.2,2927.1,0.00350088]
[1766765047194,0.17084,2928.8,2927.1,0.00350088]
[1766765048497,0.17084,2928.7,2927.1,0.00350088]
[1766765048794,6.732,2928.6,2927.1,0.00350088]
[1766765049391,0.17088,2928.1,2927.1,0.00350088]
[1766765055597,0.17084,2928.8,2927.1,0.00350088]
[1766765056889,0.17085,2928.6,2927.1,0.00350088]
[1766765058598,0.17085,2928.5,2927.1,0.00350088]
[1766765058900,0.17087,2928.2,2926.0,0.56599]
[1766765059098,0.00512908,2927.4,2926.0,0.56599]
[1766765059287,0.00512908,2927.4,2926.2,4.48745836]
[1766765059488,0.00512908,2927.4,2926.1,4.48745836]
[1766765059693,0.00512908,2927.4,2926.0,0.83446888]
[1766765059995,0.00512908,2927.4,2926.1,4.48745836]
[1766765060299,0.00512908,2927.4,2926.0,0.56999887]
[1766765061297,0.00512908,2927.4,2926.0,0.39900887]
[1766765062506,1.30447357,2926.9,2924.9,0.17106]
[1766765062696,0.17096,2926.7,2924.7,0.27602743]
[1766765062894,6.737,2927.0,2925.4,0.0051]
[1766765063599,0.0026549,2927.0,2925.4,0.00853833]
[1766765063802,0.0026549,2927.0,2925.5,4.52661846]
[1766765064000,0.00512908,2926.5,2925.5,4.52661846]
[1766765064998,0.0026549,2927.0,2925.7,0.17101]
[1766765065303,1.30447357,2928.9,2925.8,4.47972947]
[1766765065506,2.867,2928.8,2926.3,0.17098]
[1766765065802,42.294,2928.7,2926.4,4.65069947]
[1766765066101,0.00512908,2927.8,2927.3,0.00512908]
[1766765066404,0.00512908,2927.8,2926.5,4.39880386]
[1766765066903,0.00512908,2927.8,2926.4,0.17097]
[1766765067503,0.00512908,2927.8,2926.8,0.00512908]
[1766765085820,0.00512908,2927.8,2926.2,0.17098]
[1766765088412,0.00512908,2927.8,2926.3,0.17098]
[1766765088613,0.00512908,2927.8,2926.3,4.710496]
[1766765088815,0.00512908,2927.8,2926.3,0.17098]
[1766765089117,0.00512908,2927.8,2926.4,4.539516]
[1766765092917,0.00512908,2927.8,2926.4,4.710486]
[1766765093214,0.00512908,2927.8,2926.7,0.17095]
[1766765097111,0.9110499,2927.8,2926.7,0.17095]
[1766765097307,0.90592082,2927.5,2926.7,0.17095]
[1766765097519,0.90592082,2927.5,2926.1,0.17099]
[1766765097715,0.90592082,2927.5,2926.2,0.17098]
[1766765098018,0.90592082,2927.5,2926.2,4.68249266]
[1766765098213,0.9110499,2927.8,2926.2,4.68249266]
[1766765098214,0.90592082,2927.2,2926.2,0.17098]
[1766765098410,0.90592082,2927.5,2926.2,0.17098]
[1766765100917,0.90592082,2926.4,2924.7,4.65338769]
[1766765101220,0.90592082,2926.4,2924.7,0.1224151]
[1766765101221,0.90592082,2925.5,2924.7,0.1224151]
[1766765101412,0.90592082,2925.5,2924.4,0.17109]
[1766765101814,0.90592082,2925.2,2924.5,4.42929975]
[1766765102018,1.30707901,2926.0,2923.9,5.09512]
[1766765102211,1.30707901,2926.0,2924.5,0.00290313]
[1766765102618,40.8,2926.1,2924.5,0.00290313]
[1766765103222,0.00512908,2926.2,2924.5,0.00290313]
[1766765103615,40.80512908,2926.2,2924.5,0.00290313]
[1766765103820,1.30707901,2926.0,2924.5,0.00290313]
[1766765104625,1.30707901,2925.5,2923.7,3.657]
[1766765104923,1.30707901,2925.5,2923.7,5.13721376]
[1766765105222,6.709,2925.9,2923.8,4.51847728]
[1766765105525,1.30707901,2925.5,2923.7,5.13721376]
[1766765105820,1.30707901,2925.0,2923.7,0.00276691]
[1766765106022,0.00512908,2924.6,2923.7,0.00276691]
[1766765115033,2.908e-05,2924.6,2923.9,0.0051]
[1766765119927,2.908e-05,2924.6,2923.7,0.00276691]
[1766765120825,2.908e-05,2924.6,2922.9,5.09518]
[1766765121730,2.908e-05,2924.6,2922.9,5.09958978]
[1766765121934,2.908e-05,2924.6,2922.9,4.92840978]
[1766765123037,2.908e-05,2924.6,2923.1,0.17117]
[1766765129125,0.95940649,2924.5,2923.1,0.17117]
[1766765129432,0.95940649,2924.4,2923.1,0.17117]
[1766765129635,2.908e-05,2924.6,2923.1,0.17117]
[1766765129831,0.95943606,2924.5,2923.1,0.17117]
[1766765130032,0.95943606,2924.4,2923.1,0.17117]
[1766765130229,2.908e-05,2924.6,2922.9,4.92840978]
[1766765130432,0.1711,2924.2,2922.9,0.00440978]
[1766765130633,0.95947055,2924.1,2922.9,0.00440978]
[1766765131735,0.00261599,2924.2,2922.9,0.00440978]
[1766765132534,0.96071583,2924.1,2922.9,0.00440978]
[1766765132736,0.00261599,2924.2,2922.9,0.00440978]
[1766765133325,0.96114082,2924.1,2922.9,0.00440978]
[1766765133524,0.00261599,2924.2,2922.9,0.00440978]
[1766765133726,0.96114082,2924.1,2922.9,0.00440978]
[1766765133930,0.00261599,2924.2,2922.9,0.00440978]
[1766765134132,0.96114712,2924.1,2922.9,0.00440978]
[1766765134331,0.96114712,2924.0,2922.9,0.00440978]
[1766765134536,0.00261599,2924.2,2922.9,0.00440978]
[1766765134736,1.1326821,2924.1,2922.9,0.00440978]
[1766765134938,0.00261599,2924.2,2922.2,4.921]
[1766765134939,1.1326921,2924.0,2922.2,4.921]
[1766765135131,0.9615721,2923.9,2922.2,4.921]
[1766765135331,0.9615721,2923.8,2922.3,4.45382875]
[1766765135537,0.9615721,2923.7,2922.3,4.62503875]
[1766765135737,0.00261599,2924.2,2922.3,4.62503875]
[1766765135937,0.96176029,2924.1,2922.3,4.62848024]
[1766765136137,0.96176029,2924.0,2922.3,0.17465149]
[1766765136440,0.96176029,2923.9,2922.3,0.17465149]
[1766765136636,0.96176029,2923.8,2922.3,0.17465149]
[1766765136843,0.96176029,2923.7,2922.3,0.00344149]
[1766765137135,0.96176029,2923.6,2922.3,0.00344149]
[1766765137335,0.96176029,2923.5,2922.3,0.00344149]
[1766765137535,0.96176029,2923.4,2922.3,0.00344149]
[1766765137838,1.23180266,2924.2,2922.4,4.38510039]
[1766765138236,0.00261599,2924.2,2922.4,4.38510039]
[1766765138431,0.00261599,2924.2,2922.3,0.17465149]
[1766765138838,0.00261599,2924.2,2922.4,4.42312218]
[1766765139039,0.00261599,2924.2,2922.4,4.59433218]
[1766765139237,0.00261599,2924.2,2922.6,0.17119]
[1766765140237,0.00261599,2924.2,2922.7,4.37565172]
[1766765140634,0.00261599,2924.2,2922.7,4.54684172]
[1766765141036,0.00261599,2924.2,2922.7,0.17119]
[1766765141245,0.00261599,2924.2,2922.8,4.40857059]
[1766765145134,0.00261599,2924.2,2922.8,4.57975059]
[1766765145543,0.00261599,2924.2,2922.8,0.17118]
[1766765146841,0.00261599,2924.2,2922.3,0.00344149]
[1766765147044,1.48151427,2923.7,2920.8,15.79803082]
[1766765147242,1.40290266,2924.2,2920.7,4.90920577]
[1766765147440,1.40290266,2924.2,2921.9,4.3755513]
[1766765147749,40.8,2924.1,2921.3,4.42334238]
[1766765147944,40.8,2924.1,2922.0,4.42334238]
[1766765148146,40.8,2924.1,2921.3,4.42334238]
[1766765148147,0.17112,2924.0,2921.8,4.918]
[1766765148446,0.00512908,2923.2,2922.6,0.00512908]
[1766765148649,0.00512908,2923.2,2921.7,0.17125]
[1766765150449,0.00512908,2923.2,2921.3,0.27777127]
[1766765150753,0.17118,2922.9,2921.3,0.00390598]
[1766765150947,0.95981367,2922.8,2921.3,0.00390598]
[1766765151843,0.00512908,2923.2,2921.3,0.00390598]
[1766765151844,0.95981367,2922.7,2921.3,0.00390598]
[1766765152046,0.00512908,2923.2,2921.4,4.48672094]
[1766765152246,0.95879268,2923.1,2921.4,4.48672094]
[1766765152454,0.00512908,2923.2,2921.4,4.48672094]
[1766765152646,0.95840969,2923.1,2921.3,0.00390598]
[1766765152847,0.95840969,2923.0,2921.3,0.00390598]
[1766765153041,0.00512908,2923.2,2921.4,4.53352569]
[1766765153257,0.95840877,2923.1,2921.4,4.53352569]
[1766765153553,0.00512908,2923.2,2921.4,4.53352569]
[1766765155556,0.00512908,2923.2,2921.3,0.00390598]
[1766765158257,40.8,2923.1,2921.3,0.00390598]
[1766765158757,0.17118,2922.9,2920.9,0.17129]
[1766765159161,0.17118,2922.9,2921.0,4.51517405]
[1766765159558,0.17119,2922.7,2921.0,0.00357161]
[1766765159765,0.1712,2922.5,2921.0,0.00357161]
[1766765160165,40.8,2923.1,2921.0,0.00357161]
[1766765162568,0.1712,2922.6,2921.0,0.00357161]
[1766765166675,40.8,2923.1,2921.0,0.00357161]
[1766765167769,0.17117,2923.0,2921.0,0.00357161]
[1766765169174,0.00512908,2923.2,2921.1,4.51235401]
[1766765169376,0.00512908,2923.2,2921.4,0.17126]
[1766765169677,0.00512908,2923.2,2921.5,4.46635661]
[1766765170673,0.00512908,2923.2,2921.5,9.38135661]
[1766765173080,0.00512908,2923.2,2921.6,4.916]
[1766765173984,0.00512908,2923.2,2921.7,0.17125]
[1766765178680,0.00512908,2923.2,2922.0,0.17123]
[1766765180787,0.17371599,2924.2,2922.1,4.64131593]
[1766765181087,0.00261599,2924.2,2922.6,0.17119]
[1766765181287,0.00261599,2924.2,2922.7,4.914]
[1766765181680,0.00261599,2924.2,2923.2,0.00512908]
[1766765181881,0.00261599,2924.2,2923.2,0.00802526]
[1766765182891,0.00512908,2924.0,2923.2,0.00802526]
[1766765183390,2.908e-05,2924.0,2923.2,0.00802526]
[1766765186692,0.17103,2925.4,2923.3,4.3857821]
[1766765187190,40.8,2925.3,2923.3,4.3857821]
[1766765187587,0.00512908,2924.6,2923.3,4.3857821]
[1766765187994,0.00512908,2924.6,2923.4,4.91]
[1766765188194,0.00512908,2924.6,2923.5,4.91]
[1766765190486,0.00512908,2924.6,2923.2,0.17918526]
[1766765190796,0.00512908,2924.6,2923.3,1.498]
[1766765191896,0.90800184,2924.5,2923.3,1.498]
[1766765192097,0.00512908,2924.6,2923.5,0.17114]
[1766765192285,0.90800184,2925.0,2923.6,0.90800184]
[1766765192489,0.68330184,2924.7,2923.6,4.45999239]
[1766765192694,0.90800184,2924.6,2923.6,4.45999239]
[1766765193095,0.78270184,2924.6,2923.6,4.45999239]
[1766765193296,0.00512908,2924.4,2923.6,4.45999239]
[1766765193692,0.90800184,2924.6,2923.6,4.45999239]
[1766765193897,0.00327111,2925.3,2923.6,4.45999239]
[1766765194798,0.00512908,2924.7,2923.6,4.45999239]
[1766765195589,1.11576559,2925.4,2923.6,4.45999239]
[1766765195790,1.11576559,2925.4,2923.5,0.17114]
[1766765196295,1.11576559,2925.4,2923.6,1.999]
[1766765196597,1.11576559,2925.4,2923.6,4.908]
[1766765196598,0.0034194,2924.8,2923.6,4.908]
[1766765197500,0.0034194,2924.8,2923.2,0.00802526]
[1766765197902,0.0034194,2924.8,2923.2,0.17918526]
[1766765198400,0.0034194,2924.8,2923.3,0.17115]
[1766765198902,0.0034194,2924.8,2923.3,4.53311381]
[1766765201100,0.0034194,2924.8,2923.5,0.17114]
[1766765201301,1.30988511,2925.4,2923.3,4.36196381]
[1766765201302,0.00251971,2925.4,2923.3,4.36196381]
[1766765201608,0.00251971,2925.4,2923.6,4.52298803]
[1766765201799,0.00251971,2925.4,2923.4,3.79507173]
[1766765202007,0.00251971,2925.4,2924.0,0.17111]
[1766765202202,0.00251971,2925.4,2924.1,4.907]
[1766765203606,1.30988511,2925.4,2923.4,0.17115]
[1766765203906,1.3073654,2924.9,2923.5,3.828]
[1766765209207,1.30988511,2925.4,2923.5,3.828]
[1766765209601,1.30988511,2925.4,2923.6,4.904]
[1766765212401,1.30988511,2925.4,2923.7,4.49635249]
[1766765212807,0.00251971,2925.4,2923.7,4.66748249]
[1766765213403,0.00251971,2925.4,2924.0,0.17111]
[1766765214704,0.00251971,2925.4,2924.2,0.1711]
[1766765215012,1.971e-05,2925.4,2924.4,0.17109]
[1766765215306,1.971e-05,2925.4,2924.5,4.904]
[1766765219810,1.971e-05,2925.4,2924.4,0.17109]
[1766765221417,1.3073654,2925.3,2923.8,0.17112]
[1766765221611,1.3073654,2925.3,2923.9,4.903]
[1766765221814,1.971e-05,2925.4,2923.9,4.903]
[1766765222816,1.971e-05,2925.4,2923.8,0.17112]
[1766765222817,1.3073654,2925.3,2923.8,0.17112]
[1766765223017,1.3073654,2925.3,2923.9,4.178]
[1766765223521,1.3073654,2925.3,2923.4,1.50411873]
[1766765223722,1.3073654,2925.3,2923.5,4.903]
[1766765223918,1.3073654,2925.3,2923.5,9.38204908]
[1766765225022,1.3073654,2925.3,2923.5,4.47904908]
[1766765225223,1.3073654,2925.3,2923.6,4.903]
[1766765225419,1.3073654,2925.3,2923.5,4.47904908]
[1766765225620,0.17104971,2925.4,2923.7,4.903]
[1766765226221,0.17104971,2925.4,2923.8,4.39876904]
[1766765228015,1.3073654,2925.3,2923.9,4.906]
[1766765228914,1.3073654,2925.3,2924.0,4.907]
[1766765230022,1.3073654,2925.3,2924.1,4.907]
[1766765230619,1.3073654,2924.8,2923.3,3.05395295]
[1766765230823,1.3073654,2924.3,2922.9,0.44855317]
[1766765231018,1.3073654,2924.8,2923.2,4.907]
[1766765231915,0.00512908,2924.3,2923.7,0.00512908]
[1766765232724,0.17105,2925.1,2923.7,0.00512908]
[1766765233128,40.97105,2925.1,2923.7,0.00512908]
[1766765235635,40.8,2925.1,2923.7,0.00512908]
[1766765235828,1.971e-05,2925.4,2923.7,0.00512908]
[1766765236531,1.971e-05,2925.4,2923.8,4.4636737]
[1766765237737,1.971e-05,2925.4,2924.1,0.17111]
[1766765237937,1.971e-05,2925.4,2924.2,5.0771]
[1766765238132,1.971e-05,2925.4,2924.2,9.5830759]
[1766765238335,1.971e-05,2925.4,2924.2,5.0771]
[1766765238530,1.971e-05,2925.4,2924.3,4.5059759]
[1766765240136,1.971e-05,2925.4,2924.3,4.6770759]
[1766765241035,0.63332025,2927.0,2924.6,0.17108]
[1766765241336,0.17094,2926.9,2925.5,0.00512908]
[1766765241535,40.8,2926.8,2925.5,0.00512908]
[1766765241943,40.8029035,2926.8,2925.5,0.00932352]
[1766765248441,0.00512908,2926.4,2925.0,4.91]
[1766765249444,0.00512908,2926.4,2925.4,0.00512908]
[1766765249939,2.908e-05,2926.4,2925.4,0.00512908]
[1766765250647,2.908e-05,2926.4,2925.5,9.34903034]
[1766765250848,0.0029035,2926.8,2925.5,9.34903034]
[1766765251535,40.8,2927.7,2925.5,9.34903034]
[1766765252746,40.80349545,2927.7,2925.5,9.34903034]
[1766765252941,40.80349545,2927.7,2925.6,0.17102]
[1766765253339,40.80349545,2927.7,2925.7,4.38975649]
[1766765253538,0.00349545,2927.7,2925.7,4.38975649]
[1766765255042,0.17439545,2927.7,2925.7,4.38975649]
[1766765255247,0.00349545,2927.7,2925.8,4.91]
[1766765255548,0.17091,2927.5,2925.8,4.91]
[1766765255949,0.00349545,2927.7,2925.8,4.91]
[1766765261850,0.17439545,2927.7,2925.7,0.17101]
[1766765262054,0.17439545,2927.7,2925.7,5.05701]
[1766765262855,6.81749545,2927.7,2925.4,0.00512908]
[1766765263051,0.17093,2927.2,2925.4,4.91212908]
[1766765263255,0.17093,2927.2,2925.4,0.00512908]
[1766765265458,0.17093,2927.2,2925.5,4.907]
[1766765265660,0.17093,2927.2,2925.5,9.28835522]
[1766765270271,0.17439545,2927.7,2925.5,9.28835522]
[1766765270466,0.17091,2927.5,2925.5,4.38135522]
[1766765270667,0.17091,2927.5,2925.6,4.909]
[1766765277276,0.17091,2927.5,2925.6,5.08002]
[1766765277975,0.00349545,2927.7,2925.8,0.17101]
[1766765278173,0.93500777,2927.6,2925.8,0.17101]
[1766765278372,0.00349545,2927.7,2925.9,4.43374651]
[1766765278576,0.00349545,2927.7,2926.2,0.17098]
[1766765278873,0.17082,2929.0,2926.8,0.17095]
[1766765279071,0.93467582,2928.9,2927.6,0.00512908]
[1766765279275,1.10550582,2928.8,2927.6,0.00512908]
[1766765279476,1.10551582,2928.7,2926.8,4.908]
[1766765279670,1.10551582,2928.6,2926.7,4.908]
[1766765279870,0.17084,2928.6,2926.7,4.908]
[1766765280470,0.00512908,2927.9,2926.5,0.00303104]
[1766765280776,0.00512908,2927.9,2926.5,4.91103104]
[1766765281172,0.00512908,2927.9,2926.5,4.91003104]
[1766765281578,0.00512908,2927.9,2926.9,0.00512908]
[1766765282375,0.00512908,2927.9,2926.5,0.00303104]
[1766765282568,0.00512908,2927.9,2925.8,0.171]
[1766765282569,0.9343283,2927.8,2925.8,0.171]
[1766765282769,0.9343283,2927.7,2925.9,4.902]
[1766765282967,1.1052383,2927.6,2925.5,0.26616363]
[1766765283278,0.17091,2927.6,2925.6,9.27185132]
[1766765283478,0.17091,2927.6,2926.3,0.00512908]
[1766765284772,0.00512908,2927.9,2926.3,0.00512908]
[1766765284773,0.17091,2927.5,2926.3,0.00512908]
[1766765285476,0.17093,2927.2,2925.6,0.00382186]
[1766765286481,0.17093,2927.1,2926.1,2.908e-05]
[1766765286682,0.17093,2927.1,2925.6,0.00382186]
[1766765287073,0.17094,2926.9,2925.6,0.00382186]
[1766765287573,0.17094,2926.9,2926.0,0.00512908]
[1766765287779,0.17094,2926.9,2925.6,0.00382186]
[1766765288682,0.17094,2926.9,2926.0,0.0034194]
[1766765288984,0.17094,2926.9,2925.6,0.00382186]
[1766765289182,0.17095,2926.8,2925.6,0.00382186]
[1766765292084,0.17092,2927.4,2925.6,0.00382186]
[1766765292284,0.17092,2927.3,2925.6,0.00382186]
[1766765293384,0.17093,2927.1,2925.6,0.00382186]
[1766765293579,0.17095,2926.9,2925.6,0.00382186]
[1766765295686,0.17095,2926.8,2925.2,1.47879854]
[1766765295886,0.00512908,2926.3,2925.2,1.47879854]
[1766765296682,0.00919612,2926.3,2925.2,1.48203389]
[1766765300788,0.00919612,2926.3,2925.2,0.00323535]
[1766765308109,0.00919612,2926.3,2925.2,4.93723535]
[1766765309112,0.00919612,2926.3,2924.5,3.05395295]
[1766765309113,1.30637114,2925.7,2924.2,5.77564785]
[1766765309307,1.30637114,2925.7,2924.3,4.936]
[1766765310212,1.30637114,2925.7,2924.3,4.9390615]
[1766765310612,1.30637114,2925.7,2924.4,4.938]
[1766765311109,0.17101,2925.8,2924.4,4.938]
[1766765311513,0.00919612,2926.3,2924.5,4.40010181]
[1766765312212,1.47736114,2926.2,2924.4,0.17109]
[1766765312407,0.17099,2926.1,2924.3,0.0030615]
[1766765312607,0.17099,2926.1,2924.4,4.939]
[1766765312807,0.17099,2926.1,2924.5,4.48621703]
[1766765313011,0.17099,2926.1,2924.4,9.42521703]
[1766765313214,0.17099,2926.1,2924.4,4.939]
[1766765313409,0.17099,2926.1,2924.5,4.53264418]
[1766765315119,0.17099,2926.1,2924.3,0.0030615]
[1766765315120,0.17099,2926.1,2924.6,4.943]
[1766765315711,0.17099,2926.1,2924.7,4.944]
[1766765317015,0.17099,2926.1,2924.3,0.0030615]
[1766765317316,1.30637114,2925.7,2924.3,0.0030615]
[1766765317817,1.30637114,2925.7,2924.3,4.9480615]
[1766765318015,1.30637114,2925.7,2924.3,0.0030615]
[1766765318419,0.17102,2925.6,2924.3,0.0030615]
[1766765320514,0.17103,2925.4,2924.3,0.0030615]
[1766765324322,1.47742114,2925.2,2923.5,0.17114]
[1766765324522,0.00512908,2924.6,2923.6,4.944]
[1766765324721,1.47742114,2925.2,2923.6,4.944]
[1766765324722,0.17105,2925.2,2923.6,4.944]
[1766765325423,40.8,2925.6,2923.6,5.11805297]
[1766765325926,0.17101,2925.8,2924.3,0.00512908]
[1766765326120,0.17101,2925.8,2924.4,4.944]
[1766765326918,0.00512908,2925.4,2924.4,4.944]
[1766765329724,0.00512908,2925.4,2924.3,0.00512908]
[1766765330425,0.00512908,2925.4,2923.6,0.00291297]
[1766765330622,0.00512908,2925.4,2923.7,2.119]
[1766765330930,1.30637114,2925.2,2923.7,4.943]
[1766765331522,1.30637114,2925.2,2924.2,0.00512908]
[1766765332629,1.30637114,2924.3,2922.7,4.942]
[1766765333019,0.17108,2924.6,2922.8,4.41175834]
[1766765333219,0.17108,2924.6,2922.6,0.17119]
[1766765333423,0.17108,2924.6,2922.7,4.942]
[1766765333623,0.00512908,2923.9,2922.7,4.94556832]
[1766765333829,0.0087865,2923.9,2922.7,4.94556832]
[1766765334628,0.0087865,2923.9,2922.8,4.942]
[1766765336422,0.0087865,2923.9,2922.9,4.942]
[1766765338222,0.0087865,2923.9,2922.7,0.00356832]
[1766765338422,0.0087865,2923.9,2923.0,4.942]
[1766765341830,0.0087865,2923.9,2923.1,4.942]
[1766765342225,0.0087865,2923.9,2922.7,0.00356832]
[1766765342626,0.0087865,2923.9,2921.1,6.08410458]
[1766765342627,1.30637114,2922.9,2921.2,0.17127]
[1766765342835,0.17116,2923.3,2921.3,4.941]
[1766765343022,0.00512908,2922.6,2921.3,4.941]
[1766765343225,0.00512908,2922.6,2920.7,0.17131]
[1766765343425,0.00512908,2922.6,2920.8,4.941]
[1766765343628,0.00512908,2922.6,2920.8,4.94440574]
[1766765343835,0.00512908,2922.6,2920.9,4.68372444]
[1766765344132,0.00512908,2922.6,2921.0,4.941]
[1766765344830,0.00512908,2922.6,2921.0,5.11229]
[1766765345023,0.00512908,2922.6,2921.1,4.6516422]
[1766765345343,0.17114,2923.6,2921.1,4.4803622]
[1766765345934,40.97114,2923.6,2921.1,4.4803622]
[1766765346234,1.31002856,2923.9,2921.6,0.17125]
[1766765346422,1.31002856,2923.9,2922.5,0.00512908]
[1766765347122,0.00365742,2923.9,2922.5,0.00512908]
[1766765347529,0.00512908,2923.5,2922.5,0.00512908]
[1766765347930,0.00512908,2923.5,2922.6,3.385]
[1766765348131,0.00512908,2923.5,2922.5,4.94712908]
[1766765348529,0.00365742,2923.9,2922.6,4.942]
[1766765348732,0.00365742,2923.9,2922.6,9.40658891]
[1766765350331,40.8,2924.9,2922.7,0.17119]
[1766765350638,0.17105,2925.1,2922.8,4.5572658]
[1766765350835,0.00512908,2924.2,2922.8,4.5572658]
[1766765351027,0.00512908,2924.2,2922.9,4.942]
[1766765351528,0.00914104,2924.2,2922.9,4.94574154]
[1766765352028,0.00914104,2924.2,2922.9,0.00374154]
[1766765352226,0.00914104,2924.2,2922.9,4.94574154]
[1766765353435,0.00914104,2924.2,2922.9,0.00374154]
[1766765353831,1.31551218,2924.2,2922.5,0.00512908]
[1766765354227,0.00914104,2924.2,2922.5,0.00512908]
[1766765354933,0.00914104,2924.2,2922.5,0.0089019]
[1766765355528,0.00914104,2924.2,2922.6,4.42808558]
[1766765358136,0.00914104,2924.2,2922.8,0.17118]
[1766765358428,0.00914104,2924.2,2922.9,4.37606312]
[1766765359136,0.00914104,2924.2,2922.8,0.17118]
[1766765359622,0.00914104,2924.2,2922.7,4.942]
[1766765360033,0.00914104,2924.2,2922.5,0.0089019]
[1766765360235,0.00914104,2924.2,2922.6,2.276]
[1766765360434,0.00914104,2924.2,2922.6,6.79613552]
[1766765360629,0.00914104,2924.2,2922.6,4.52013552]
[1766765360832,1.31551218,2924.2,2922.5,4.9499019]
[1766765361233,0.18024104,2924.2,2922.5,4.9499019]
[1766765362028,0.00914104,2924.2,2922.6,4.51565152]
[1766765362433,0.00914104,2924.2,2922.7,0.17119]
[1766765363036,0.00914104,2924.2,2922.8,4.58847054]
[1766765363536,0.00914104,2924.2,2922.8,0.17118]
[1766765364038,0.00914104,2924.2,2922.9,0.17118]
[1766765366341,0.00914104,2924.2,2923.0,4.47246197]
[1766765367040,0.00914104,2924.2,2923.0,4.64363197]
[1766765367439,0.00914104,2924.2,2923.0,0.17117]
[1766765367737,0.00914104,2924.2,2923.1,4.42404688]
[1766765369432,0.00914104,2924.2,2923.0,0.17117]
[1766765372046,0.00914104,2924.2,2923.0,5.11317]
[1766765374446,0.00914104,2924.2,2923.0,4.91317]
[1766765375542,0.00914104,2924.2,2923.0,5.08434]
[1766765378040,42.02559511,2925.3,2923.0,5.08434]
[1766765378041,40.8,2925.3,2923.2,0.17116]
[1766765378255,0.93912447,2925.2,2923.4,0.17115]
[1766765378447,0.17103,2925.4,2923.5,0.17114]
[1766765378751,0.17103,2925.4,2923.5,4.57697053]
[1766765378953,0.17103,2925.4,2923.5,0.17114]
[1766765379145,0.00512908,2924.7,2924.2,0.00512908]
[1766765379545,0.17450996,2925.4,2924.2,0.00512908]
[1766765380549,0.0034194,2925.1,2924.2,0.00512908]
[1766765386550,40.77792936,2925.8,2924.2,0.00512908]
[1766765386855,1.10904039,2925.7,2924.2,0.00512908]
[1766765387048,0.17102,2925.7,2924.2,0.00512908]
[1766765387655,0.17438864,2925.7,2924.2,0.00512908]
[1766765387854,0.17102,2925.6,2924.2,0.00512908]
[1766765388659,0.00336864,2925.7,2924.2,0.00512908]
[1766765388848,0.17103,2925.4,2924.2,0.00512908]
[1766765394857,0.00336864,2925.7,2924.2,0.00512908]
[1766765396156,0.00336864,2925.7,2924.2,4.94512908]
[1766765397353,0.00336864,2925.7,2924.3,4.53717112]
[1766765398061,0.17097,2926.5,2924.5,0.17108]
[1766765398367,0.17097,2926.5,2924.6,4.44858729]
[1766765399267,0.17097,2926.4,2924.6,4.4520038]
[1766765399765,0.17097,2926.4,2924.7,4.94]
[1766765400465,0.17097,2926.4,2924.6,4.94341651]
[1766765400669,0.17099,2926.2,2924.6,0.00341651]
[1766765401070,0.17099,2926.1,2924.6,0.00341651]
[1766765402066,0.00355395,2926.5,2924.6,0.00341651]
[1766765402067,0.17101,2925.9,2924.6,0.00341651]
[1766765402663,0.17102,2925.7,2924.2,0.00512908]
[1766765403768,8.28911919,2926.5,2924.2,0.00932095]
[1766765403962,0.17103,2925.5,2924.2,0.00932095]
[1766765404466,0.17102,2925.6,2924.2,0.00932095]
[1766765404864,0.17103,2925.5,2924.2,0.00932095]
[1766765405061,0.17103,2925.4,2924.2,2.095e-05]
[1766765406166,0.00512908,2925.1,2924.5,0.00512908]
[1766765408774,0.00512908,2925.1,2924.2,2.095e-05]
[1766765408972,0.17617908,2925.1,2924.2,2.095e-05]
[1766765409770,0.17617908,2925.1,2924.4,0.00512908]
[1766765410072,0.17617908,2925.1,2924.2,2.095e-05]
[1766765410972,0.17106,2924.9,2924.2,2.095e-05]
[1766765411274,0.17106,2924.9,2924.3,0.00512908]
[1766765413066,0.17106,2924.9,2924.3,2.908e-05]
[1766765414167,0.17106,2924.9,2923.3,5.10815]
[1766765414874,0.00512908,2925.1,2923.1,0.12161015]
[1766765415068,0.17108,2924.6,2923.1,0.12161015]
[1766765415269,0.17108,2924.6,2923.6,0.00512908]
[1766765415971,0.00512908,2925.1,2923.6,0.00512908]